bitfinex/quotes_SOLUSD_20230113
["timestamp","ask_amount","ask_price","bid_price","bid_amount"]
[1673593514797,46.37053009,16.973,16.953,1228.6]
[1673593515024,11.93,16.98,16.96,11.79]
[1673593515341,20.0,16.979,16.961,3.29665362]
[1673593515529,20.0,16.979,16.961,13.29665362]
[1673593515744,20.0,16.979,16.964,3.29665362]
[1673593515962,58.30053009,16.98,16.966,3.29665362]
[1673593516175,46.37053009,16.98,16.966,23.29665362]
[1673593516383,46.28582228,16.984,16.966,3.29665362]
[1673593516589,11.85,16.98,16.966,3.29665362]
[1673593517127,58.22053009,16.98,16.966,3.29665362]
[1673593517332,58.22053009,16.98,16.966,13.29665362]
[1673593517546,58.22053009,16.98,16.966,3.29665362]
[1673593517861,37.0,16.979,16.966,3.29665362]
[1673593519755,83.37053009,16.979,16.966,3.29665362]
[1673593520489,35.92280236,16.978,16.961,3.29665362]
[1673593520707,37.0,16.977,16.961,3.29665362]
[1673593520906,83.37053009,16.977,16.961,3.29665362]
[1673593524996,59.25,16.97,16.961,3.29665362]
[1673593525211,59.31,16.97,16.955,3.29665362]
[1673593525416,102.90149362,16.969,16.947,116.2166]
[1673593525636,215.00773647,16.969,16.947,116.2166]
[1673593525853,168.00773647,16.968,16.947,116.2166]
[1673593526167,205.00773647,16.967,16.947,116.2166]
[1673593526392,17.0,16.966,16.947,116.2166]
[1673593526601,185.00773647,16.966,16.947,116.2166]
[1673593526814,168.00773647,16.965,16.947,116.2166]
[1673593526999,17.0,16.964,16.948,10.0]
[1673593527208,129.10624285,16.964,16.948,10.0]
[1673593527437,44.46749713,16.963,16.948,10.0]
[1673593527652,17.0,16.962,16.948,10.0]
[1673593528057,61.46749713,16.962,16.948,10.0]
[1673593529422,61.46749713,16.962,16.947,116.2166]
[1673593530490,61.46749713,16.962,16.948,10.0]
[1673593530677,61.46749713,16.962,16.948,1238.6]
[1673593534383,20.0,16.967,16.949,10.0]
[1673593534682,58.62541239,16.966,16.949,10.0]
[1673593535108,44.46749713,16.965,16.949,10.0]
[1673593535852,17.0,16.964,16.949,10.0]
[1673593537014,17.0,16.964,16.95,11.74]
[1673593537518,17.0,16.964,16.951,10.0]
[1673593540352,17.0,16.964,16.95,11.74]
[1673593541291,17.0,16.964,16.948,1228.6]
[1673593545096,17.0,16.964,16.949,10.0]
[1673593545711,17.0,16.964,16.948,1228.6]
[1673593545939,17.0,16.964,16.949,10.0]
[1673593546358,44.46749713,16.963,16.949,10.0]
[1673593546586,17.0,16.962,16.949,10.0]
[1673593546795,17.0,16.962,16.949,118.0418]
[1673593547947,17.0,16.962,16.949,108.0418]
[1673593551095,59.13,16.96,16.942,115.9069]
[1673593551311,20.0,16.959,16.942,115.9069]
[1673593551629,37.0,16.959,16.942,115.9069]
[1673593551812,44.46749713,16.958,16.942,115.9069]
[1673593552025,17.0,16.957,16.942,115.9069]
[1673593552246,20.0,16.956,16.942,115.9069]
[1673593552456,17.0,16.955,16.942,115.9069]
[1673593554029,20.0,16.956,16.943,10.0]
[1673593554241,20.0,16.959,16.943,10.0]
[1673593555495,17.0,16.958,16.942,115.9069]
[1673593555716,20.0,16.957,16.942,115.9069]
[1673593555929,17.0,16.956,16.942,115.9069]
[1673593556125,20.0,16.955,16.942,115.9069]
[1673593556458,17.0,16.954,16.942,115.9069]
[1673593558245,61.46749713,16.954,16.942,115.9069]
[1673593558796,11.73,16.95,16.942,115.9069]
[1673593558968,11.73,16.95,16.93,59.19]
[1673593558969,17.0,16.949,16.937,110.1073]
[1673593559388,20.0,16.948,16.937,110.1073]
[1673593559598,17.0,16.947,16.937,110.1073]
[1673593560236,20.0,16.946,16.937,110.1073]
[1673593560562,17.0,16.945,16.937,110.1073]
[1673593563500,20.0,16.946,16.937,110.1073]
[1673593563710,20.0,16.952,16.937,110.1073]
[1673593563942,20.0,16.953,16.937,110.1073]
[1673593564148,11.85,16.95,16.937,110.1073]
[1673593564339,20.0,16.949,16.937,110.1073]
[1673593565408,17.0,16.948,16.937,110.1073]
[1673593565619,20.0,16.947,16.937,110.1073]
[1673593565830,17.0,16.946,16.937,110.1073]
[1673593566041,20.0,16.945,16.937,110.1073]
[1673593566260,17.0,16.944,16.937,110.1073]
[1673593567195,17.0,16.944,16.93,11.91]
[1673593567516,17.0,16.944,16.931,10.0]
[1673593573503,17.0,16.944,16.93,125.0752]
[1673593574426,17.0,16.944,16.931,10.0]
[1673593576018,17.0,16.944,16.93,135.0752]
[1673593576233,17.0,16.944,16.931,10.0]
[1673593578548,17.0,16.944,16.93,125.0752]
[1673593578970,17.0,16.944,16.931,10.0]
[1673593582462,17.0,16.944,16.93,125.0752]
[1673593582777,17.0,16.944,16.931,10.0]
[1673593583109,17.0,16.944,16.93,125.0752]
[1673593583737,17.0,16.944,16.931,10.0]
[1673593587001,20.0,16.945,16.931,10.0]
[1673593587211,20.0,16.947,16.931,10.0]
[1673593587409,20.0,16.949,16.931,10.0]
[1673593588366,17.0,16.948,16.931,10.0]
[1673593588579,20.0,16.947,16.931,10.0]
[1673593588791,17.0,16.946,16.931,10.0]
[1673593589112,20.0,16.945,16.931,10.0]
[1673593589323,17.0,16.944,16.931,10.0]
[1673593591942,17.0,16.944,16.93,125.0752]
[1673593592146,17.0,16.944,16.931,10.0]
[1673593596660,20.0,16.945,16.931,10.0]
[1673593596970,20.0,16.949,16.932,10.0]
[1673593597183,20.0,16.949,16.932,15.19214]
[1673593597996,20.0,16.949,16.933,10.0]
[1673593598964,17.0,16.948,16.933,10.0]
[1673593599160,20.0,16.947,16.933,10.0]
[1673593600128,20.0,16.949,16.933,10.0]
[1673593600315,20.0,16.949,16.933,15.19184]
[1673593600745,17.0,16.948,16.933,15.19184]
[1673593601052,20.0,16.947,16.933,15.19184]
[1673593603581,17.0,16.946,16.933,15.19184]
[1673593603793,20.0,16.945,16.933,15.19184]
[1673593604219,20.0,16.945,16.933,5.19184]
[1673593604430,17.0,16.944,16.933,5.19184]
[1673593604749,17.0,16.944,16.93,134.8952]
[1673593605489,17.0,16.944,16.931,10.0]
[1673593606854,20.0,16.945,16.931,10.0]
[1673593607062,20.0,16.949,16.931,10.0]
[1673593608323,17.0,16.948,16.931,10.0]
[1673593608534,20.0,16.947,16.931,10.0]
[1673593608727,17.0,16.946,16.931,10.0]
[1673593609154,20.0,16.945,16.931,10.0]
[1673593614839,17.0,16.944,16.922,396.6]
[1673593615033,11.85,16.94,16.922,396.6]
[1673593615247,37.0,16.939,16.923,10.0]
[1673593616831,77.61083046,16.939,16.922,396.6]
[1673593617049,58.67882505,16.938,16.922,396.6]
[1673593617359,37.0,16.937,16.922,396.6]
[1673593618824,37.0,16.937,16.923,10.0]
[1673593620933,37.0,16.937,16.922,509.7261]
[1673593621469,37.0,16.937,16.923,10.0]
[1673593621677,20.0,16.937,16.923,10.0]
[1673593622914,17.0,16.936,16.923,10.0]
[1673593623144,20.0,16.935,16.923,10.0]
[1673593625131,20.0,16.935,16.922,113.1261]
[1673593625331,17.0,16.934,16.922,113.1261]
[1673593626604,20.0,16.935,16.922,113.1261]
[1673593626818,20.0,16.937,16.923,10.0]
[1673593627135,17.0,16.936,16.923,10.0]
[1673593627448,20.0,16.935,16.923,10.0]
[1673593627640,17.0,16.934,16.923,10.0]
[1673593629235,20.0,16.935,16.923,10.0]
[1673593629449,20.0,16.937,16.923,10.0]
[1673593629659,17.0,16.936,16.923,10.0]
[1673593629848,20.0,16.935,16.923,10.0]
[1673593630608,20.0,16.937,16.923,10.0]
[1673593631945,11.83,16.95,16.93,11.85]
[1673593632162,20.0,16.949,16.93,11.85]
[1673593632791,20.0,16.949,16.932,10.0]
[1673593633852,17.0,16.948,16.932,10.0]
[1673593634063,17.0,16.949,16.932,10.0]
[1673593635324,20.0,16.948,16.932,10.0]
[1673593635754,20.0,16.949,16.932,10.0]
[1673593636909,17.0,16.948,16.932,10.0]
[1673593637113,20.0,16.947,16.932,10.0]
[1673593637330,17.0,16.946,16.932,10.0]
[1673593637743,20.0,16.945,16.932,10.0]
[1673593638901,17.0,16.944,16.931,118.4129]
[1673593639111,17.0,16.944,16.932,10.0]
[1673593640053,17.0,16.944,16.931,118.4129]
[1673593640813,17.0,16.944,16.93,11.85]
[1673593641332,17.0,16.944,16.929,115.013]
[1673593642780,17.0,16.944,16.93,10.0]
[1673593644161,17.0,16.944,16.929,115.013]
[1673593644379,17.0,16.944,16.93,10.0]
[1673593647850,20.0,16.945,16.93,10.0]
[1673593648036,20.0,16.949,16.93,10.0]
[1673593649189,20.0,16.949,16.931,10.0]
[1673593650458,20.0,16.949,16.932,10.0]
[1673593651308,20.0,16.949,16.933,110.0369]
[1673593651504,17.0,16.948,16.934,10.0]
[1673593651714,20.0,16.947,16.934,10.0]
[1673593657627,20.0,16.949,16.934,10.0]
[1673593664123,20.0,16.949,16.934,15.19153]
[1673593664329,20.0,16.949,16.935,10.0]
[1673593664651,20.0,16.955,16.935,10.0]
[1673593664868,17.0,16.954,16.935,10.0]
[1673593665191,20.0,16.953,16.935,10.0]
[1673593665401,17.0,16.952,16.935,15.19122]
[1673593665612,20.0,16.951,16.935,15.19122]
[1673593668445,20.0,16.951,16.936,10.0]
[1673593668643,20.0,16.951,16.936,15.19092]
[1673593669282,20.0,16.951,16.936,5.19092]
[1673593669588,28.73,16.95,16.936,5.19092]
[1673593669797,20.0,16.949,16.936,5.19092]
[1673593670024,17.0,16.948,16.936,5.19092]
[1673593670343,20.0,16.947,16.936,5.19092]
[1673593672841,17.0,16.946,16.936,5.19092]
[1673593673067,20.0,16.945,16.933,110.0369]
[1673593673392,17.0,16.944,16.933,109.94488784]
[1673593679784,17.0,16.944,16.93,11.75]
[1673593680000,20.0,16.945,16.93,21.75]
[1673593680210,20.0,16.949,16.93,21.75]
[1673593680428,20.0,16.949,16.931,35.65928801]
[1673593680747,20.0,16.949,16.932,5.19214]
[1673593680941,20.0,16.954,16.932,15.19214]
[1673593681150,20.0,16.954,16.933,10.0]
[1673593681356,47.90220634,16.953,16.933,10.0]
[1673593681588,20.0,16.952,16.933,10.0]
[1673593681989,67.90220634,16.952,16.933,10.0]
[1673593682336,17.0,16.951,16.933,10.0]
[1673593682639,20.0,16.95,16.933,10.0]
[1673593683266,28.72505195,16.951,16.933,10.0]
[1673593683891,17.0,16.95,16.933,10.0]
[1673593685253,20.0,16.949,16.933,10.0]
[1673593685481,17.0,16.948,16.933,10.0]
[1673593685684,20.0,16.947,16.933,10.0]
[1673593686955,4.8838,16.956,16.934,207.96683801]
[1673593687265,4.8838,16.956,16.94,11.85]
[1673593687458,4.8838,16.956,16.941,114.3858]
[1673593687799,4.8838,16.956,16.942,10.0]
[1673593687997,103.079,16.959,16.942,10.0]
[1673593688194,20.0,16.956,16.942,10.0]
[1673593689361,20.0,16.958,16.942,10.0]
[1673593689769,20.0,16.959,16.942,10.0]
[1673593690824,17.0,16.958,16.942,10.0]
[1673593691046,20.0,16.957,16.942,10.0]
[1673593691238,17.0,16.956,16.942,10.0]
[1673593691659,20.0,16.955,16.942,10.0]
[1673593692101,17.0,16.954,16.942,10.0]
[1673593692303,20.0,16.955,16.942,10.0]
[1673593693465,17.0,16.954,16.942,10.0]
[1673593693995,49.81702354,16.96,16.942,10.0]
[1673593695243,20.0,16.959,16.942,10.0]
[1673593695480,17.0,16.958,16.942,10.0]
[1673593695674,20.0,16.957,16.942,10.0]
[1673593695885,94.87942354,16.964,16.942,10.0]
[1673593696117,11.85,16.96,16.942,10.0]
[1673593697249,20.0,16.959,16.942,10.0]
[1673593698096,17.0,16.958,16.942,10.0]
[1673593698307,20.0,16.957,16.942,10.0]
[1673593698620,17.0,16.956,16.942,10.0]
[1673593699142,20.0,16.955,16.942,10.0]
[1673593702822,20.0,16.955,16.941,90.8858]
[1673593703345,20.0,16.959,16.942,10.0]
[1673593703657,17.0,16.958,16.942,10.0]
[1673593703867,20.0,16.957,16.942,10.0]
[1673593706518,20.0,16.957,16.941,57.3858]
[1673593706738,20.0,16.957,16.942,10.0]
[1673593711763,20.0,16.957,16.942,122.4131]
[1673593711975,20.0,16.957,16.943,10.77745714]
[1673593712823,20.0,16.957,16.943,10.0]
[1673593715146,11.85,16.96,16.943,10.0]
[1673593715455,17.0,16.959,16.944,1.44181497]
[1673593716305,20.0,16.958,16.944,1.44181497]
[1673593716633,20.0,16.958,16.943,10.0]
[1673593717563,11.83,16.96,16.943,10.0]
[1673593717885,11.83,16.96,16.944,11.22469317]
[1673593719359,20.0,16.959,16.944,11.22469317]
[1673593720619,20.0,16.959,16.945,5.18816]
[1673593720808,20.0,16.965,16.946,1239.82469317]
[1673593721023,59.43,16.97,16.95,11.85]
[1673593721241,20.0,16.967,16.951,3.30161443]
[1673593721672,122.03810028,16.967,16.951,3.30161443]
[1673593721890,17.0,16.966,16.948,3.30161443]
[1673593722068,20.0,16.965,16.948,3.30161443]
[1673593722407,17.0,16.964,16.948,3.30161443]
[1673593722598,20.0,16.963,16.948,3.30161443]
[1673593722804,17.0,16.962,16.948,3.30161443]
[1673593723020,20.0,16.961,16.948,3.30161443]
[1673593723230,17.0,16.96,16.948,3.30161443]
[1673593723454,20.0,16.959,16.948,3.30161443]
[1673593723667,17.0,16.958,16.948,3.30161443]
[1673593724063,20.0,16.957,16.948,3.30161443]
[1673593724277,17.0,16.956,16.948,3.30161443]
[1673593724488,17.0,16.956,16.944,396.6]
[1673593724700,11.83,16.95,16.938,117.0408]
[1673593724930,37.0,16.949,16.938,117.0408]
[1673593727339,98.65468225,16.949,16.938,117.0408]
[1673593729980,11.84,16.96,16.94,11.85]
[1673593730379,11.84,16.96,16.941,10.0]
[1673593730816,11.84,16.96,16.942,110.8568]
[1673593731230,20.0,16.959,16.943,10.0]
[1673593731642,4.7608,16.965,16.943,15.18877]
[1673593731856,4.7608,16.965,16.944,10.0]
[1673593732707,17.0,16.962,16.944,10.0]
[1673593733135,20.0,16.961,16.944,10.0]
[1673593733319,17.0,16.96,16.944,10.0]
[1673593733746,20.0,16.959,16.944,10.0]
[1673593734397,20.0,16.966,16.95,11.85]
[1673593734710,20.0,16.968,16.95,11.85]
[1673593734920,20.0,16.969,16.95,59.25]
[1673593735114,20.0,16.969,16.95,59.29]
[1673593735317,20.0,16.969,16.951,10.0]
[1673593735549,20.0,16.969,16.951,120.51]
[1673593735777,20.0,16.969,16.952,10.0]
[1673593736070,95.6967,16.974,16.953,0.66294454]
[1673593736288,43.57348956,16.976,16.955,0.7626595]
[1673593736474,43.57348956,16.976,16.96,11.85]
[1673593737426,17.0,16.975,16.96,11.85]
[1673593738175,95.6967,16.979,16.961,0.88198974]
[1673593738487,20.0,16.978,16.961,0.88198974]
[1673593738914,20.0,16.978,16.961,10.88198974]
[1673593739109,20.0,16.979,16.961,10.88198974]
[1673593740827,17.0,16.978,16.961,10.88198974]
[1673593741024,20.0,16.977,16.96,11.85]
[1673593741231,17.0,16.976,16.96,11.85]
[1673593741438,20.0,16.975,16.96,11.85]
[1673593741650,17.0,16.974,16.96,11.85]
[1673593745234,17.0,16.974,16.961,0.6984278]
[1673593745965,17.0,16.974,16.96,11.85]
[1673593746171,17.0,16.974,16.961,0.61396571]
[1673593746388,17.0,16.974,16.96,11.85]
[1673593747425,17.0,16.974,16.961,10.0]
[1673593749445,17.0,16.974,16.962,0.60994294]
[1673593753548,11.73,16.97,16.95,11.95]
[1673593753764,37.0,16.969,16.956,111.9248]
[1673593755973,37.0,16.969,16.957,10.0]
[1673593760272,37.0,16.969,16.956,111.9248]
[1673593761647,37.0,16.969,16.957,10.0]
[1673593764170,37.0,16.969,16.956,111.9248]
[1673593765235,37.0,16.969,16.957,10.0]
[1673593765440,20.0,16.969,16.957,10.0]
[1673593765762,59.17,16.98,16.957,10.0]
[1673593765970,20.0,16.977,16.957,10.0]
[1673593766580,20.0,16.979,16.957,10.0]
[1673593766790,17.0,16.978,16.957,10.0]
[1673593767000,20.0,16.977,16.957,10.0]
[1673593767221,17.0,16.976,16.957,10.0]
[1673593767745,20.0,16.975,16.957,10.0]
[1673593767955,17.0,16.974,16.957,10.0]
[1673593769542,20.0,16.975,16.957,10.0]
[1673593769754,59.17,16.98,16.957,10.0]
[1673593769755,20.0,16.979,16.957,15.18449]
[1673593769953,20.0,16.979,16.958,10.0]
[1673593770583,20.0,16.979,16.96,10.0]
[1673593771000,17.0,16.978,16.96,10.0]
[1673593771209,20.0,16.977,16.96,10.0]
[1673593771427,17.0,16.976,16.96,10.0]
[1673593771651,20.0,16.975,16.96,10.0]
[1673593771847,17.0,16.974,16.96,10.0]
[1673593773846,20.0,16.975,16.96,21.85]
[1673593774181,20.0,16.979,16.961,10.0]
[1673593775128,17.0,16.978,16.961,10.0]
[1673593775310,20.0,16.977,16.961,10.0]
[1673593775520,17.0,16.976,16.961,10.0]
[1673593775835,20.0,16.975,16.961,10.0]
[1673593776045,17.0,16.974,16.961,10.0]
[1673593777117,17.0,16.974,16.96,21.85]
[1673593777515,20.0,16.975,16.961,10.0]
[1673593777741,11.77,16.98,16.962,10.0]
[1673593777742,20.0,16.979,16.962,10.0]
[1673593777955,20.0,16.979,16.962,15.18296]
[1673593779325,17.0,16.978,16.962,15.18296]
[1673593779630,11.77,16.98,16.963,5.18265]
[1673593779631,20.0,16.977,16.963,5.18265]
[1673593780245,20.0,16.985,16.964,10.0]
[1673593780453,20.0,16.989,16.965,144.61704]
[1673593780677,20.0,16.989,16.966,10.0]
[1673593781304,20.0,16.989,16.968,10.0]
[1673593781509,17.0,16.988,16.968,10.0]
[1673593781928,17.0,16.989,16.968,10.0]
[1673593783208,20.0,16.988,16.968,10.0]
[1673593783404,17.0,16.987,16.968,10.0]
[1673593783610,20.0,16.986,16.968,10.0]
[1673593783834,20.0,16.989,16.968,10.0]
[1673593784138,20.0,16.989,16.97,11.85]
[1673593784980,17.0,16.988,16.97,11.85]
[1673593785299,20.0,16.987,16.97,11.85]
[1673593785507,17.0,16.986,16.97,11.85]
[1673593785717,20.0,16.985,16.97,11.85]
[1673593785925,17.0,16.984,16.97,11.85]
[1673593788569,17.0,16.984,16.968,10.0]
[1673593788570,17.0,16.984,16.967,109.5966]
[1673593788759,17.0,16.984,16.968,10.0]
[1673593790363,11.85,16.98,16.967,109.5966]
[1673593790563,37.0,16.979,16.967,109.5966]
[1673593793509,37.0,16.979,16.965,119.435]
[1673593797189,20.0,16.979,16.965,119.435]
[1673593798427,17.0,16.978,16.965,119.435]
[1673593798644,20.0,16.977,16.965,119.435]
[1673593798859,17.0,16.976,16.965,119.435]
[1673593799168,20.0,16.975,16.965,119.435]
[1673593799381,17.0,16.974,16.965,119.435]
[1673593800548,20.0,16.975,16.965,119.435]
[1673593800751,20.0,16.979,16.966,10.0]
[1673593800968,17.0,16.978,16.966,10.0]
[1673593801177,20.0,16.977,16.966,10.0]
[1673593801367,17.0,16.976,16.966,10.0]
[1673593801577,20.0,16.975,16.965,119.435]
[1673593802338,20.0,16.975,16.966,10.0]
[1673593803079,20.0,16.975,16.965,119.435]
[1673593803611,20.0,16.975,16.966,10.0]
[1673593817483,11.85,16.98,16.966,10.0]
[1673593817673,40.46990517,16.995,16.968,10.0]
[1673593817674,17.0,16.979,16.968,10.0]
[1673593817887,69.25,16.99,16.968,10.0]
[1673593817888,17.0,16.984,16.968,10.0]
[1673593818098,17.0,16.984,16.968,119.2768]
[1673593818421,17.0,16.984,16.969,10.0]
[1673593820730,43.57348956,16.987,16.969,10.0]
[1673593820847,20.0,16.986,16.969,10.0]
[1673593821895,17.0,16.985,16.969,10.0]
[1673593829871,11.85,16.98,16.967,1228.6]
[1673593830199,85.11482289,16.979,16.967,1228.6]
[1673593830619,132.27200043,16.979,16.967,1228.6]
[1673593835257,132.27200043,16.979,16.965,119.435]
[1673593835441,84.15717754,16.979,16.965,119.435]
[1673593838011,117.76481132,16.979,16.965,119.435]
[1673593841458,10.0,16.978,16.965,119.435]
[1673593841797,37.0,16.977,16.965,119.435]
[1673593841991,100.76481132,16.979,16.965,119.435]
[1673593842186,17.0,16.978,16.965,119.435]
[1673593842389,20.0,16.977,16.965,119.435]
[1673593842595,17.0,16.976,16.965,119.435]
[1673593842805,20.0,16.975,16.965,119.435]
[1673593843017,17.0,16.974,16.965,119.435]
[1673593843218,16.5,16.974,16.965,119.435]
[1673593844701,16.5,16.974,16.961,10.0]
[1673593844925,11.83,16.97,16.957,508.3136]
[1673593845123,11.83,16.97,16.957,111.7136]
[1673593845327,37.80141213,16.969,16.957,111.7136]
[1673593845565,37.80141213,16.969,16.953,396.6]
[1673593845767,84.95858967,16.969,16.953,396.6]
[1673593846179,118.56622345,16.969,16.953,396.6]
[1673593846933,166.68104634,16.969,16.948,115.2912]
[1673593847353,166.68104634,16.969,16.949,10.0]
[1673593847995,11.85,16.96,16.949,10.0]
[1673593848182,39.44911744,16.959,16.948,115.2912]
[1673593851466,39.44911744,16.959,16.94,408.53]
[1673593851763,95.27200043,16.958,16.93,58.94]
[1673593851958,39.44911744,16.957,16.934,115.991]
[1673593852173,168.32875165,16.957,16.939,10.0]
[1673593852705,22.44911744,16.957,16.94,11.85]
[1673593852931,2.44911744,16.958,16.94,17.03969]
[1673593853129,2.44911744,16.958,16.942,10.0]
[1673593854082,19.44911744,16.958,16.942,10.0]
[1673593854476,20.0,16.957,16.942,10.0]
[1673593854687,19.44911744,16.956,16.942,10.0]
[1673593854899,20.0,16.955,16.942,10.0]
[1673593855119,19.44911744,16.954,16.942,10.0]
[1673593860628,19.44911744,16.954,16.933,1228.6]
[1673593860629,20.0,16.953,16.933,1228.6]
[1673593860784,2.44911744,16.952,16.939,10.0]
[1673593860995,2.44911744,16.949,16.929,117.8511]
[1673593861222,22.44911744,16.949,16.92,120.5106]
[1673593861554,130.80934425,16.948,16.921,111.0324]
[1673593861737,11.85,16.94,16.922,15.19521]
[1673593861941,20.0,16.939,16.923,10.0]
[1673593862157,37.0,16.939,16.923,10.0]
[1673593872769,20.0,16.939,16.923,10.0]
[1673593872991,22.44911744,16.946,16.923,10.0]
[1673593873825,22.44911744,16.946,16.924,50.46683801]
[1673593874165,20.0,16.945,16.925,30.46683801]
[1673593874374,2.44911744,16.944,16.926,20.0]
[1673593874565,2.44911744,16.948,16.927,10.0]
[1673593874986,2.44911744,16.949,16.927,10.0]
[1673593875403,15.84,16.94,16.928,119.2052]
[1673593875650,17.0,16.939,16.929,117.7892]
[1673593876250,20.0,16.938,16.929,117.7892]
[1673593876461,17.0,16.937,16.929,117.7892]
[1673593876658,20.0,16.936,16.929,117.7892]
[1673593876887,17.0,16.935,16.929,117.7892]
[1673593877513,17.0,16.935,16.92,108.7606]
[1673593877731,17.0,16.935,16.922,112.1718]
[1673593878139,17.0,16.935,16.923,10.0]
[1673593880580,20.0,16.936,16.923,10.0]
[1673593880768,2.44911744,16.947,16.924,1259.06683801]
[1673593881103,20.0,16.949,16.925,30.0]
[1673593881306,20.0,16.949,16.926,1228.6]
[1673593881625,20.0,16.949,16.927,10.0]
[1673593881835,20.0,16.949,16.927,1238.6]
[1673593882047,20.0,16.949,16.928,10.0]
[1673593882255,20.0,16.949,16.93,10.0]
[1673593882787,79.27,16.95,16.93,10.0]
[1673593883178,118.95447289,16.95,16.93,10.0]
[1673593884249,20.0,16.949,16.93,10.0]
[1673593884467,17.0,16.948,16.93,10.0]
[1673593884701,20.0,16.947,16.93,10.0]
[1673593884869,17.0,16.946,16.93,10.0]
[1673593885086,20.0,16.945,16.93,10.0]
[1673593885715,20.0,16.949,16.93,10.0]
[1673593886444,17.0,16.948,16.93,10.0]
[1673593886650,20.0,16.947,16.93,10.0]
[1673593886866,17.0,16.946,16.93,10.0]
[1673593887082,20.0,16.945,16.93,10.0]
[1673593887301,17.0,16.944,16.93,10.0]
[1673593889199,11.87,16.96,16.932,177.5]
[1673593889400,11.87,16.96,16.94,11.86]
[1673593889599,59.52,16.96,16.94,11.86]
[1673593890122,59.52,16.96,16.941,109.4874]
[1673593890772,20.0,16.959,16.941,109.4874]
[1673593891087,59.52,16.96,16.942,10.0]
[1673593892232,59.52,16.96,16.941,109.4874]
[1673593892749,59.52,16.96,16.938,113.1049]
[1673593892750,17.0,16.959,16.938,113.1049]
[1673593892961,11.81,16.95,16.938,113.1049]
[1673593893177,37.0,16.949,16.938,113.1049]
[1673593894749,37.0,16.949,16.939,10.0]
[1673593895500,37.0,16.949,16.938,113.1049]
[1673593907352,37.0,16.949,16.935,113.3052]
[1673593910122,37.0,16.949,16.929,396.6]
[1673593910328,11.83,16.94,16.929,396.6]
[1673593910639,20.0,16.939,16.923,116.2848]
[1673593910850,17.0,16.938,16.923,116.2848]
[1673593911060,20.0,16.937,16.924,10.0]
[1673593911260,17.0,16.936,16.924,10.0]